lending/lending_fUSD_20250808
["ID","MTS","AMOUNT","RATE_DAILY","PERIOD"]
[377904824,1754611837517,-1620.76,0.00019178,2]
[377904825,1754611837528,-1109.5,0.00019178,2]
[377904826,1754611837539,-400.0,0.00019178,2]
[377904827,1754611837548,-400.0,0.00019178,2]
[377904828,1754611837559,-400.0,0.00019178,2]
[377904829,1754611837570,-592.07,0.00019178,2]
[377904830,1754611837579,-564.64,0.00019178,2]
[377904831,1754611837589,-400.0,0.00019178,2]
[377904832,1754611837599,-1032.38,0.00019178,2]
[377904833,1754611837608,-400.0,0.00019178,2]
[377904834,1754611837618,-754.37,0.00019178,2]
[377904835,1754611837629,-541.68,0.00019178,2]
[377904836,1754611837640,-1161.36,0.00019178,2]
[377904837,1754611837649,-776.74,0.00019178,2]
[377904838,1754611837659,-400.0,0.00019178,2]
[377904839,1754611837669,-1691.5,0.00019178,2]
[377904840,1754611837679,-400.0,0.00019178,2]
[377904841,1754611837689,-2306.13,0.00019178,2]
[377904842,1754611837699,-400.0,0.00019178,2]
[377904843,1754611837708,-400.0,0.00019178,2]
[377904844,1754611837719,-400.0,0.00019178,2]
[377904845,1754611837729,-318.64063269,0.00019178,2]
[377904846,1754611837739,-1263.8,0.00019178,2]
[377904847,1754611837748,-400.0,0.00019178,2]
[377904848,1754611837758,-588.14,0.00019178,2]
[377904850,1754611837768,-3401.21,0.00019178,2]
[377904852,1754611837778,-1432.08,0.00019178,2]
[377904855,1754611837788,-1210.87,0.00019178,2]
[377904857,1754611837798,-1545.3,0.00019178,2]
[377904859,1754611837808,-493.89015983,0.00019178,2]
[377904861,1754611837818,-400.0,0.00019178,2]
[377904863,1754611837827,-524.23,0.00019178,2]
[377904865,1754611837837,-400.0,0.00019178,2]
[377904867,1754611837847,-400.0,0.00019178,2]
[377904868,1754611837857,-400.0,0.00019178,2]
[377904869,1754611837866,-1062.93,0.00019178,2]
[377904870,1754611837876,-414.19,0.00019178,2]
[377904871,1754611837893,-400.0,0.00019178,2]
[377904873,1754611837902,-305.46168879,0.00019178,2]
[377904915,1754611838560,-94.53831121,0.00019178,2]
[377904917,1754611838571,-400.0,0.00019178,2]
[377904918,1754611838581,-400.0,0.00019178,2]
[377904920,1754611838591,-662.2,0.00019178,2]
[377904922,1754611838601,-400.0,0.00019178,2]
[377904925,1754611838610,-1028.35,0.00019178,2]
[377904926,1754611838620,-1133.5,0.00019178,2]
[377904929,1754611838633,-400.0,0.00019178,2]
[377904930,1754611838643,-529.51,0.00019178,2]
[377904932,1754611838653,-400.0,0.00019178,2]
[377904934,1754611838663,-584.38,0.00019178,2]
[377904936,1754611838673,-437.56885516,0.00019178,2]
[377904938,1754611838682,-400.0,0.00019178,2]
[377904940,1754611838692,-400.0,0.00019178,2]
[377904942,1754611838701,-400.0,0.00019178,2]
[377904944,1754611838711,-400.0,0.00019178,2]
[377904946,1754611838720,-400.0,0.00019178,2]
[377904948,1754611838731,-1627.39,0.00019178,2]
[377904950,1754611838741,-400.0,0.00019178,2]
[377904953,1754611838751,-742.46,0.00019178,2]
[377904954,1754611838760,-833.25,0.00019178,2]
[377904956,1754611838769,-400.0,0.00019178,2]
[377904959,1754611838779,-1578.81,0.00019178,2]
[377904960,1754611838788,-400.0,0.00019178,2]
[377904962,1754611838798,-1186.76,0.00019178,2]
[377904965,1754611838807,-1491.39,0.00019178,2]
[377904966,1754611838817,-1346.39,0.00019178,2]
[377904968,1754611838827,-400.0,0.00019178,2]
[377904970,1754611838836,-400.0,0.00019178,2]
[377904972,1754611838845,-400.0,0.00019178,2]
[377904974,1754611838854,-720.36,0.00019178,2]
[377904976,1754611838863,-400.0,0.00019178,2]
[377904978,1754611838873,-400.0,0.00019178,2]
[377904980,1754611838882,-1369.86,0.00019178,2]
[377904982,1754611838891,-400.0,0.00019178,2]
[377904984,1754611838902,-400.0,0.00019178,2]
[377904986,1754611838912,-1335.97,0.00019178,2]
[377904988,1754611838921,-2132.14,0.00019178,2]
[377904990,1754611838931,-400.0,0.00019178,2]
[377904992,1754611838942,-400.0,0.00019178,2]
[377904994,1754611838952,-400.0,0.00019178,2]
[377904996,1754611838961,-400.0,0.00019178,2]
[377904998,1754611838971,-718.6,0.00019178,2]
[377905000,1754611838980,-400.0,0.00019178,2]
[377905002,1754611838990,-732.76,0.00019178,2]
[377905004,1754611838999,-400.0,0.00019178,2]
[377905006,1754611839009,-1011.93,0.00019178,2]
[377905008,1754611839018,-832.94,0.00019178,2]
[377905010,1754611839027,-789.41,0.00019178,2]
[377905012,1754611839037,-400.0,0.00019178,2]
[377905014,1754611839046,-2201.71,0.00019178,2]
[377905016,1754611839056,-400.0,0.00019178,2]
[377905018,1754611839065,-556.88,0.00019178,2]
[377905020,1754611839075,-1271.53,0.00019178,2]
[377905023,1754611839084,-1142.15,0.00019178,2]
[377905025,1754611839093,-400.0,0.00019178,2]
[377905027,1754611839103,-400.0,0.00019178,2]
[377905028,1754611839112,-909.41,0.00019178,2]
[377905030,1754611839122,-1672.99,0.00019178,2]
[377905032,1754611839132,-400.0,0.00019178,2]
[377905034,1754611839141,-400.0,0.00019178,2]
[377905037,1754611839151,-400.0,0.00019178,2]
[377905038,1754611839160,-400.0,0.00019178,2]
[377905040,1754611839170,-3076.13,0.00019178,2]
[377905042,1754611839180,-751.45,0.00019178,2]
[377905044,1754611839190,-1369.19,0.00019178,2]
[377905047,1754611839200,-874.79,0.00019178,2]
[377905049,1754611839209,-959.29,0.00019178,2]
[377905050,1754611839218,-400.0,0.00019178,2]
[377905053,1754611839228,-1638.12,0.00019178,2]
[377905055,1754611839238,-400.0,0.00019178,2]
[377905056,1754611839247,-819.75,0.00019178,2]
[377905059,1754611839257,-818.12,0.00019178,2]
[377905060,1754611839267,-1313.62,0.00019178,2]
[377905063,1754611839276,-1338.47,0.00019178,2]
[377905065,1754611839286,-605.96,0.00019178,2]
[377905066,1754611839295,-400.0,0.00019178,2]
[377905069,1754611839305,-520.3,0.00019178,2]
[377905070,1754611839315,-400.0,0.00019178,2]
[377905073,1754611839324,-1028.69,0.00019178,2]
[377905074,1754611839334,-400.0,0.00019178,2]
[377905077,1754611839344,-2172.56,0.00019178,2]
[377905079,1754611839354,-400.0,0.00019178,2]
[377905080,1754611839363,-22888.03,0.00019178,2]
[377905082,1754611839373,-675.17,0.00019178,2]
[377905084,1754611839384,-477.6,0.00019178,2]
[377905086,1754611839395,-1888.43,0.00019178,2]
[377905088,1754611839405,-544.05,0.00019178,2]
[377905091,1754611839415,-673.0,0.00019178,2]
[377905093,1754611839425,-400.0,0.00019178,2]
[377905103,1754611839531,-1766.23,0.00019178,2]
[377905105,1754611839542,-1781.81,0.00019178,2]
[377905107,1754611839552,-639.21,0.00019178,2]
[377905109,1754611839565,-400.0,0.00019178,2]
[377905111,1754611839577,-400.0,0.00019178,2]
[377905113,1754611839586,-752.33,0.00019178,2]
[377905115,1754611839596,-750.18,0.00019178,2]
[377905117,1754611839606,-400.0,0.00019178,2]
[377905119,1754611839617,-785.76,0.00019178,2]
[377905121,1754611839627,-1791.88,0.00019178,2]
[377905123,1754611839640,-400.0,0.00019178,2]
[377905125,1754611839649,-874.42,0.00019178,2]
[377905127,1754611839659,-400.0,0.00019178,2]
[377905129,1754611839670,-926.15,0.00019178,2]
[377905130,1754611839679,-400.0,0.00019178,2]
[377905132,1754611839689,-1692.76,0.00019178,2]
[377905134,1754611839698,-641.95,0.00019178,2]
[377905136,1754611839707,-1104.02,0.00019178,2]
[377905138,1754611839716,-480.26,0.00019178,2]
[377905140,1754611839726,-1535.56,0.00019178,2]
[377905142,1754611839735,-788.54,0.00019178,2]
[377905144,1754611839745,-1374.04,0.00019178,2]
[377905145,1754611839755,-400.0,0.00019178,2]
[377905147,1754611839764,-400.0,0.00019178,2]
[377905149,1754611839773,-451.98,0.00019178,2]
[377905152,1754611839784,-541.4,0.00019178,2]
[377905153,1754611839793,-2191.51,0.00019178,2]
[377905155,1754611839803,-710.91,0.00019178,2]
[377905157,1754611839813,-1415.81,0.00019178,2]
[377905159,1754611839822,-811.75,0.00019178,2]
[377905161,1754611839831,-558.33,0.00019178,2]
[377905163,1754611839840,-2327.22,0.00019178,2]
[377905165,1754611839850,-400.0,0.00019178,2]
[377905167,1754611839859,-434.45,0.00019178,2]
[377905169,1754611839869,-1657.95,0.00019178,2]
[377905171,1754611839879,-400.0,0.00019178,2]
[377905173,1754611839889,-2114.24,0.00019178,2]
[377905176,1754611839899,-847.86,0.00019178,2]
[377905179,1754611839909,-400.0,0.00019178,2]
[377905182,1754611839918,-679.14,0.00019178,2]
[377905185,1754611839927,-400.0,0.00019178,2]
[377905188,1754611839936,-400.0,0.00019178,2]
[377905191,1754611839945,-552.4,0.00019178,2]
[377905194,1754611839955,-1571.52,0.00019178,2]
[377905197,1754611839964,-400.0,0.00019178,2]
[377905200,1754611839973,-400.0,0.00019178,2]
[377905203,1754611839983,-400.0,0.00019178,2]
[377905206,1754611839992,-1193.99,0.00019178,2]
[377905209,1754611840002,-870.78,0.00019178,2]
[377905212,1754611840011,-400.0,0.00019178,2]
[377905214,1754611840023,-400.0,0.00019178,2]
[377905216,1754611840034,-400.0,0.00019178,2]
[377905218,1754611840043,-400.0,0.00019178,2]
[377905221,1754611840052,-519.37,0.00019178,2]
[377905224,1754611840062,-619.71,0.00019178,2]
[377905227,1754611840070,-1523.62,0.00019178,2]
[377905230,1754611840079,-400.0,0.00019178,2]
[377905233,1754611840088,-664.0,0.00019178,2]
[377905236,1754611840097,-400.0,0.00019178,2]
[377905239,1754611840107,-400.0,0.00019178,2]
[377905242,1754611840116,-400.0,0.00019178,2]
[377905245,1754611840125,-1741.3,0.00019178,2]
[377905248,1754611840134,-400.0,0.00019178,2]
[377905251,1754611840143,-485.48,0.00019178,2]
[377905254,1754611840152,-522.1,0.00019178,2]
[377905257,1754611840162,-707.84,0.00019178,2]
[377905260,1754611840174,-1040.38,0.00019178,2]
[377905263,1754611840183,-728.14,0.00019178,2]
[377905266,1754611840192,-400.0,0.00019178,2]
[377905269,1754611840201,-891.37,0.00019178,2]
[377905272,1754611840210,-1331.11,0.00019178,2]
[377905275,1754611840220,-400.0,0.00019178,2]
[377905278,1754611840229,-2440.53,0.00019178,2]
[377905281,1754611840239,-494.92,0.00019178,2]
[377905284,1754611840248,-502.89,0.00019178,2]
[377905287,1754611840258,-400.0,0.00019178,2]
[377905290,1754611840267,-2091.26,0.00019178,2]
[377905293,1754611840276,-1346.15,0.00019178,2]
[377905296,1754611840285,-400.0,0.00019178,2]
[377905299,1754611840294,-400.0,0.00019178,2]
[377905300,1754611840303,-400.0,0.00019178,2]
[377905303,1754611840313,-2199.43,0.00019178,2]
[377905305,1754611840323,-400.0,0.00019178,2]
[377905308,1754611840332,-714.63,0.00019178,2]
[377905311,1754611840341,-698.05,0.00019178,2]
[377905313,1754611840351,-158.11853323,0.00019178,2]
[377905316,1754611840360,-1016.24,0.00019178,2]
[377905318,1754611840370,-400.0,0.00019178,2]
[377905321,1754611840379,-458.64,0.00019178,2]
[377905323,1754611840390,-400.0,0.00019178,2]
[377905326,1754611840399,-400.0,0.00019178,2]
[377905329,1754611840409,-1215.04,0.00019178,2]
[377905331,1754611840418,-400.0,0.00019178,2]
[377905334,1754611840428,-1674.72,0.00019178,2]
[377905337,1754611840438,-1704.41,0.00019178,2]
[377905339,1754611840448,-459.53,0.00019178,2]
[377905342,1754611840457,-783.16,0.00019178,2]
[377905345,1754611840467,-400.0,0.00019178,2]
[377905347,1754611840477,-400.0,0.00019178,2]
[377905349,1754611840490,-450.25,0.00019178,2]
[377905351,1754611840499,-800.08,0.00019178,2]
[377905353,1754611840508,-400.0,0.00019178,2]
[377905355,1754611840518,-1566.26,0.00019178,2]
[377905357,1754611840528,-1812.28,0.00019178,2]
[377905359,1754611840539,-827.59,0.00019178,2]
[377905361,1754611840548,-400.0,0.00019178,2]
[377905364,1754611840558,-1059.09,0.00019178,2]
[377905366,1754611840568,-1751.25,0.00019178,2]
[377905368,1754611840580,-934.93,0.00019178,2]
[377905370,1754611840591,-2123.23,0.00019178,2]
[377905372,1754611840601,-1153.67,0.00019178,2]
[377905374,1754611840612,-400.0,0.00019178,2]
[377905376,1754611840621,-400.0,0.00019178,2]
[377905378,1754611840630,-400.0,0.00019178,2]
[377905380,1754611840640,-2116.03,0.00019178,2]
[377905382,1754611840650,-400.0,0.00019178,2]
[377905384,1754611840659,-400.0,0.00019178,2]
[377905386,1754611840669,-400.0,0.00019178,2]
[377905388,1754611840679,-2246.0208891,0.00019178,2]
[377905391,1754611840688,-1847.71,0.00019178,2]
[377905392,1754611840698,-466.37,0.00019178,2]
[377905395,1754611840707,-400.0,0.00019178,2]
[377905396,1754611840717,-400.0,0.00019178,2]
[377905399,1754611840726,-1524.43,0.00019178,2]
[377905401,1754611840736,-1443.83,0.00019178,2]
[377905403,1754611840745,-400.0,0.00019178,2]
[377905405,1754611840755,-1893.33,0.00019178,2]
[377905406,1754611840764,-10393.18,0.00019178,2]
[377905409,1754611840774,-406.91,0.00019178,2]
[377905410,1754611840784,-633.39,0.00019178,2]
[377905412,1754611840793,-400.0,0.00019178,2]
[377905414,1754611840803,-400.0,0.00019178,2]
[377905416,1754611840812,-1261.13,0.00019178,2]
[377905419,1754611840823,-400.0,0.00019178,2]
[377905420,1754611840832,-400.0,0.00019178,2]
[377905422,1754611840841,-400.0,0.00019178,2]
[377905424,1754611840851,-400.0,0.00019178,2]
[377905426,1754611840861,-400.0,0.00019178,2]
[377905429,1754611840871,-400.0,0.00019178,2]
[377905431,1754611840880,-1390.15,0.00019178,2]
[377905432,1754611840890,-957.14,0.00019178,2]
[377905434,1754611840899,-2076.3,0.00019178,2]
[377905436,1754611840909,-400.0,0.00019178,2]
[377905439,1754611840919,-710.67,0.00019178,2]
[377905441,1754611840928,-1037.88,0.00019178,2]
[377905443,1754611840938,-465.91,0.00019178,2]
[377905444,1754611840947,-2942.2,0.00019178,2]
[377905446,1754611840957,-1470.35,0.00019178,2]
[377905448,1754611840967,-400.0,0.00019178,2]
[377905450,1754611840976,-400.0,0.00019178,2]
[377905452,1754611840985,-1998.98,0.00019178,2]
[377905454,1754611840995,-135.27983078,0.00019178,2]
[377905460,1754611841035,-264.72016922,0.00019178,2]
[377905462,1754611841044,-400.0,0.00019178,2]
[377905464,1754611841053,-559.96,0.00019178,2]
[377905466,1754611841064,-400.0,0.00019178,2]
[377905469,1754611841074,-556.7,0.00019178,2]
[377905472,1754611841083,-413.6,0.00019178,2]
[377905474,1754611841093,-43.84447672,0.00019178,2]
[377905476,1754611841104,-555.15552328,0.00019178,2]
[377905478,1754611841113,-1408.01,0.00019178,2]
[377905480,1754611841122,-726.14741985,0.00019178,2]
[377905482,1754611841134,-755.15258015,0.00019178,2]
[377905484,1754611841143,-1546.67,0.00019178,2]
[377905486,1754611841153,-1506.79,0.00019178,2]
[377905488,1754611841162,-1491.71,0.00019178,2]
[377905490,1754611841172,-1971.77,0.00019178,2]
[377905492,1754611841181,-400.0,0.00019178,2]
[377905494,1754611841190,-3202.02,0.00019178,2]
[377905496,1754611841199,-430.88,0.00019178,2]
[377905498,1754611841209,-1167.75,0.00019178,2]
[377905500,1754611841218,-400.0,0.00019178,2]
[377905502,1754611841227,-400.0,0.00019178,2]
[377905504,1754611841236,-1151.04,0.00019178,2]
[377905506,1754611841246,-400.0,0.00019178,2]
[377905508,1754611841255,-400.0,0.00019178,2]
[377905510,1754611841264,-938.73,0.00019178,2]
[377905512,1754611841273,-781.95,0.00019178,2]
[377905514,1754611841282,-400.0,0.00019178,2]
[377905516,1754611841291,-2284.55,0.00019178,2]
[377905518,1754611841301,-1595.39,0.00019178,2]
[377905520,1754611841310,-1623.42,0.00019178,2]
[377905522,1754611841319,-400.0,0.00019178,2]
[377905524,1754611841329,-686.92591059,0.00019178,2]
[377905526,1754611841342,-546.79408941,0.00019178,2]
[377905528,1754611841352,-1002.45,0.00019178,2]
[377905530,1754611841361,-574.57,0.00019178,2]
[377905532,1754611841371,-400.0,0.00019178,2]
[377905534,1754611841380,-400.0,0.00019178,2]
[377905536,1754611841391,-400.0,0.00019178,2]
[377905538,1754611841400,-400.0,0.00019178,2]
[377905540,1754611841409,-1741.2,0.00019178,2]
[377905542,1754611841419,-1186.67,0.00019178,2]
[377905544,1754611841428,-400.0,0.00019178,2]
[377905546,1754611841437,-459.9,0.00019178,2]
[377905548,1754611841446,-400.0,0.00019178,2]
[377905550,1754611841455,-844.57,0.00019178,2]
[377905552,1754611841465,-900.23,0.00019178,2]
[377905554,1754611841475,-2426.81,0.00019178,2]
[377905556,1754611841487,-914.28,0.00019178,2]
[377905558,1754611841497,-814.92,0.00019178,2]
[377905560,1754611841506,-285.68055931,0.00019178,2]
[377905562,1754611841515,-518.27,0.00019178,2]
[377905564,1754611841526,-400.0,0.00019178,2]
[377905566,1754611841535,-400.0,0.00019178,2]
[377905567,1754611841544,-20192.73171745,0.00019178,2]
[377905568,1754611841558,-34334.23894915,0.00019178,2]
[377905569,1754611841568,-400.0,0.00019178,2]
[377905570,1754611841577,-573.85,0.00019178,2]
[377905571,1754611841587,-400.0,0.00019178,2]
[377905572,1754611841598,-2173.27821864,0.00019178,2]
[377905573,1754611841610,-3743.90178136,0.00019178,2]
[377905574,1754611841620,-1645.72,0.00019178,2]
[377905575,1754611841629,-836.34,0.00019178,2]
[377905576,1754611841640,-400.0,0.00019178,2]
[377905577,1754611841650,-400.0,0.00019178,2]
[377905578,1754611841660,-798.58,0.00019178,2]
[377905579,1754611841670,-1000.0,0.00019178,2]
[377905581,1754611841680,-2782.22,0.00019178,2]
[377905583,1754611841690,-367.53821814,0.00019178,2]
[377905585,1754611841702,-892.95178186,0.00019178,2]
[377905587,1754611841712,-1729.7,0.00019178,2]
[377905589,1754611841723,-709.71,0.00019178,2]
[377905591,1754611841734,-653.1,0.00019178,2]
[377905593,1754611841744,-2122.16,0.00019178,2]
[377905595,1754611841755,-400.0,0.00019178,2]
[377905597,1754611841764,-498.08,0.00019178,2]
[377905599,1754611841775,-400.0,0.00019178,2]
[377905601,1754611841787,-400.0,0.00019178,2]
[377905603,1754611841796,-400.0,0.00019178,2]
[377905605,1754611841806,-550.19,0.00019178,2]
[377905607,1754611841816,-400.0,0.00019178,2]
[377905609,1754611841826,-746.49,0.00019178,2]
[377905611,1754611841835,-1013.11821814,0.00019178,2]
[377905615,1754611841861,-266.76562038,0.00019178,2]
[377905617,1754611841872,-1378.76616148,0.00019178,2]
[377905619,1754611841882,-894.66,0.00019178,2]
[377905621,1754611841893,-151.0,0.00019178,2]
[377905623,1754611841902,-210.747003,0.00019178,2]
[377905625,1754611841911,-2681.61,0.00019178,2]
[377905627,1754611841920,-1344.92,0.00019178,2]
[377905629,1754611841930,-1762.16,0.00019178,2]
[377905631,1754611841939,-400.0,0.00019178,2]
[377905633,1754611841948,-1717.83,0.00019178,2]
[377905635,1754611841958,-151.0,0.00019178,2]
[377905637,1754611841968,-151.0,0.00019178,2]
[377905639,1754611841978,-1203.48,0.00019178,2]
[377905641,1754611841987,-151.0,0.00019178,2]
[377905643,1754611841997,-400.0,0.00019178,2]
[377905645,1754611842006,-400.0,0.00019178,2]
[377905648,1754611842016,-1954.18,0.00019178,2]
[377905649,1754611842026,-749.91,0.00019178,2]
[377905651,1754611842036,-20157.8270864,0.00019178,2]
[377905654,1754611842046,-400.0,0.00019178,2]
[377905655,1754611842055,-1497.25,0.00019178,2]
[377905657,1754611842064,-400.0,0.00019178,2]
[377905659,1754611842074,-1133.47,0.00019178,2]
[377905661,1754611842084,-1271.72,0.00019178,2]
[377905664,1754611842093,-1663.84,0.00019178,2]
[377905665,1754611842102,-1770.49,0.00019178,2]
[377905667,1754611842112,-400.0,0.00019178,2]
[377905669,1754611842121,-400.0,0.00019178,2]
[377905671,1754611842130,-674.22138094,0.00019178,2]
[377905678,1754611842187,-1441.89861906,0.00019178,2]
[377905680,1754611842197,-400.0,0.00019178,2]
[377905682,1754611842207,-400.0,0.00019178,2]
[377905684,1754611842216,-500.0,0.00019178,2]
[377905686,1754611842225,-500.0,0.00019178,2]
[377905688,1754611842234,-400.0,0.00019178,2]
[377905690,1754611842243,-500.0,0.00019178,2]
[377905692,1754611842253,-500.0,0.00019178,2]
[377905694,1754611842262,-500.0,0.00019178,2]
[377905696,1754611842271,-400.0,0.00019178,2]
[377905698,1754611842281,-840.78,0.00019178,2]
[377905700,1754611842290,-691.52,0.00019178,2]
[377905702,1754611842300,-2132.43,0.00019178,2]
[377905704,1754611842310,-1129.29,0.00019178,2]
[377905706,1754611842319,-1691.44,0.00019178,2]
[377905708,1754611842329,-521.82,0.00019178,2]
[377905710,1754611842338,-1085.64,0.00019178,2]
[377905712,1754611842349,-2034.14,0.00019178,2]
[377905714,1754611842358,-2443.46,0.00019178,2]
[377905716,1754611842368,-2318.76,0.00019178,2]
[377905718,1754611842377,-1347.78,0.00019178,2]
[377905720,1754611842387,-541.15,0.00019178,2]
[377905721,1754611842396,-400.0,0.00019178,2]
[377905723,1754611842405,-773.89138094,0.00019178,2]
[377905927,1754611844147,-266.29,0.00019178,2]
[377905930,1754611844159,-3558.55861906,0.00019178,2]
[377905932,1754611844169,-2729.35,0.00019178,2]
[377905934,1754611844180,-400.0,0.00019178,2]
[377905936,1754611844189,-870.54,0.00019178,2]
[377905938,1754611844200,-1431.45,0.00019178,2]
[377905940,1754611844209,-400.0,0.00019178,2]
[377905942,1754611844218,-400.0,0.00019178,2]
[377905944,1754611844228,-240.81892212,0.00019178,2]
[377905946,1754611844238,-1109.25,0.00019178,2]
[377905948,1754611844248,-780.11,0.00019178,2]
[377905950,1754611844257,-400.0,0.00019178,2]
[377905952,1754611844267,-2933.71,0.00019178,2]
[377905954,1754611844276,-400.0,0.00019178,2]
[377905956,1754611844285,-1111.93,0.00019178,2]
[377905958,1754611844295,-563.32,0.00019178,2]
[377905960,1754611844306,-2492.48,0.00019178,2]
[377905962,1754611844315,-400.0,0.00019178,2]
[377905964,1754611844325,-400.0,0.00019178,2]
[377905965,1754611844335,-1888.81,0.00019178,2]
[377905967,1754611844345,-811.23,0.00019178,2]
[377905968,1754611844355,-400.0,0.00019178,2]
[377905969,1754611844365,-400.0,0.00019178,2]
[377905970,1754611844375,-1042.34,0.00019178,2]
[377905971,1754611844385,-816.05,0.00019178,2]
[377905972,1754611844395,-1245.35,0.00019178,2]
[377905973,1754611844404,-2119.57,0.00019178,2]
[377905974,1754611844414,-1045.56425456,0.00019178,2]
[377905975,1754611844426,-120.24574544,0.00019178,2]
[377905976,1754611844435,-649.19,0.00019178,2]
[377905977,1754611844445,-706.98425456,0.00019178,2]
[377905978,1754611844457,-132.92574544,0.00019178,2]
[377905979,1754611844467,-454.04083121,0.00019178,2]
[377905980,1754611844479,-848.42916879,0.00019178,2]
[377905981,1754611844491,-400.0,0.00019178,2]
[377905982,1754611844501,-1188.41,0.00019178,2]
[377905983,1754611844511,-400.0,0.00019178,2]
[377905984,1754611844520,-1379.63,0.00019178,2]
[377905985,1754611844531,-158.48482468,0.00019178,2]
[377905986,1754611844543,-1114.276714,0.00019178,2]
[377905987,1754611844555,-220.60846132,0.00019178,2]
[377905988,1754611844567,-915.15,0.00019178,2]
[377905989,1754611844578,-1734.85,0.00019178,2]
[377905990,1754611844588,-400.0,0.00019178,2]
[377905991,1754611844598,-239.99943553,0.00019178,2]
[377905992,1754611844610,-1164.09056447,0.00019178,2]
[377905993,1754611844620,-400.0,0.00019178,2]
[377905994,1754611844629,-602.28552219,0.00019178,2]
[377905995,1754611844643,-826.40447781,0.00019178,2]
[377905996,1754611844653,-211.41429561,0.00019178,2]
[377905997,1754611844669,-188.58570439,0.00019178,2]
[377905998,1754611844679,-101.59971428,0.00019178,2]
[377905999,1754611844691,-298.40028572,0.00019178,2]
[377906000,1754611844702,-106.77483731,0.00019178,2]
[377906001,1754611844715,-561.52516269,0.00019178,2]
[377906002,1754611844725,-550.30066669,0.00019178,2]
[377906003,1754611844749,-792.95933331,0.00019178,2]
[377906004,1754611844758,-1374.23,0.00019178,2]
[377906005,1754611844769,-2385.89,0.00019178,2]
[377906006,1754611844779,-400.0,0.00019178,2]
[377906007,1754611844789,-400.0,0.00019178,2]
[377906008,1754611844799,-2924.91,0.00019178,2]
[377906009,1754611844808,-1163.02,0.00019178,2]
[377906010,1754611844818,-400.0,0.00019178,2]
[377906011,1754611844828,-400.0,0.00019178,2]
[377906012,1754611844838,-2616.15,0.00019178,2]
[377906013,1754611844848,-819.83,0.00019178,2]
[377906014,1754611844858,-3096.84,0.00019178,2]
[377906015,1754611844867,-961.87,0.00019178,2]
[377906016,1754611844877,-400.0,0.00019178,2]
[377906017,1754611844887,-674.12,0.00019178,2]
[377906018,1754611844897,-1591.62,0.00019178,2]
[377906019,1754611844906,-1310.81,0.00019178,2]
[377906020,1754611844915,-400.0,0.00019178,2]
[377906021,1754611844925,-400.0,0.00019178,2]
[377906022,1754611844934,-1298.26,0.00019178,2]
[377906023,1754611844943,-400.0,0.00019178,2]
[377906024,1754611844953,-400.0,0.00019178,2]
[377906025,1754611844962,-1881.63,0.00019178,2]
[377906026,1754611844972,-1705.43,0.00019178,2]
[377906027,1754611844982,-2478.01,0.00019178,2]
[377906028,1754611844992,-771.08,0.00019178,2]
[377906029,1754611845001,-400.0,0.00019178,2]
[377906030,1754611845011,-1946.61,0.00019178,2]